Workbook

Sheet Energy Index
B2: Energy index | L2: PROJECT INFORMATION
B4: Project Name : | F4: Obstruction angle, degrees : | L4: 27 | M4: 3 | N4: Internal gains (kWh) | T4: 3000
B5: Dwelling type : | D5: flat | E5: 1 | F5: Floor to ceiling height (m) | L5: 2.4 | N5: Aditional intern. gains (kWh) | T5: 0
B6: Location : | D6: LONDON | E6: 2 | F6: Ventilation rate (ac/h) | L6: 0.2 | M6: 4 | N6: Fuel type : | T6: Gas
B7: Latitude : | D7: =VLOOKUP(D6,'Energy index data'!A7:R18,2,) -> 51°28' | F7: Volume (m³) | L7: =L5*D10 -> 128.4 | N7: Mean whole house temperature (°C) | T7: 18.5
B8: Mean temp (°C) | D8: =VLOOKUP(D6,'Energy index data'!A7:R18,3,) -> 10.6 | F8: Window / floor ratio, overall (%) | L8: =SUM(J10:J14)*100/D10 -> 43.51401869 | N8: =IF(L8<10,"TOO DARK - INCREASE WINDOW AREA",0) -> 0
B9: =IF('Calculation sheet'!O41="Check location","CHECK LOCATION",0) -> 0 | D9: Area (m²) | F9: U-value (W/m²K) | H9: Windows | J9: Area (m²) | L9: U-value (W/m²K) | N9: Net area (m²) | P9: SG, DG or LE | R9: Window / floor ratio, 10 - 50% | T9: Floor reflectance, 0.20 - 0.80 | V9: Net solar gain, kWh
B10: Floor (total) | D10: 53.5 | H10: North | J10: 0 | N10: =0.8*J10 -> 0 | T10: 0 | V10: =IF(J10=0,0,ROUND('Calculation sheet'!O30,)) -> 0
B11: Ground floor | H11: NE/NW | N11: 0 | V11: =IF(J11=0,0,ROUND('Calculation sheet'!O31,)) -> 0
B12: Walls (gross) | D12: 41 | F12: 0.23 | H12: E/W | J12: 4.9 | L12: 1.4 | N12: =0.8*J12 -> 3.92 | P12: LE | R12: 25 | T12: 0.5 | V12: =IF(J12=0,0,ROUND('Calculation sheet'!O32,)) -> 701
B13: Roof | H13: SE/SW | J13: 1.48 | L13: 1.4 | N13: 0 | P13: LE | R13: 9 | T13: 0.5 | V13: =IF(J13=0,0,ROUND('Calculation sheet'!O33,)) -> 317
B14: Other | D14: 0 | F14: 0 | H14: South | J14: 16.9 | L14: 1.4 | N14: =0.8*J14 -> 13.52 | P14: LE | R14: 42 | T14: 0.5 | V14: =IF(J14=0,0,ROUND('Calculation sheet'!O34,)) -> 3463
H15: total | J15: =SUM(J10:J14) -> 23.28 | L15: =IF(SUM(J10:J14)>D12, "ERROR: WINDOW AREA LARGER THAN WALL AREA!",0) -> 0 | T15: . | V15: =SUM(V10:V14) -> 4481
D16: Mean U-value | F16: =(H19-(0.33*L7*L6))/(D12+D13+D11+D14) -> 0.8943317073
D17: (W/m²K) | L17: RESULTS
H18: total | J18: per m² | N18: CO2, kg | P18: CO2 kg/m2
B19: Building heat loss coefficient, W/K | H19: ='Calculation sheet'!O15 -> 45.142 | J19: ='Calculation sheet'!O16 -> 0.8437757009 | Q19: Excess gains, kWh | V19: =IF('Calculation sheet'!O69>0,'Calculation sheet'!O69,0) -> 3559.999425
B20: Annual heat loss, kWh | H20: ='Calculation sheet'!O24 -> 3124.006968 | Q20: Peak temperature, ºC | V20: ='Calculation sheet'!O72 -> 29.4
B21: Total internal gains, kWh | H21: ='Calculation sheet'!O37 -> 3000 | Q21: Number of hours above 27ºC | V21: ='Calculation sheet'!O73 -> 128
B22: Total net solar gains, kWh | H22: =V15 -> 4481
B23: Total annual heat gains, kWh | H23: ='Calculation sheet'!O39 -> 7481.129125 | V23: =IF(V19<=5000,0,IF(V19>10000,"EXCESS GAINS OUT OF THE RANGE","EXCESS GAINS ARE EXTRAPOLATED AND HAVE NOT BEEN VERIFIED")) -> 0
B24: Gains to Loss Ratio (GLR) | H24: ='Calculation sheet'!O43 -> 2.394722292
B25: Auxiliary Heating Fraction (AHF) | H25: ='Calculation sheet'!O41 -> 0.1246936214 | Q25: comments
B26: Continuous heating, kWh (useful) | H26: =ROUND('Calculation sheet'!O49,) -> 390 | J26: ='Calculation sheet'!O50 -> 7.281191442 | N26: ='Calculation sheet'!O61 -> 81.80418586 | P26: =N26/D10 -> 1.529050203 | R26: Birken Flat
B28: Intermittent heating, kWh (useful) | H28: =ROUND('Calculation sheet'!O53,) -> 331 | J28: ='Calculation sheet'!O54 -> 6.189012726 | N28: ='Calculation sheet'!O64 -> 69.53355798 | P28: =N28/D10 -> 1.299692672
J29: =H29/D10 -> 0
B31: ENERGY INDEX © S. YANNAS 1994 WORKSHEET M. DOBRIN & S.YANNAS 1996-2011
B32: HOW TO USE THE WORKSHEET AND INTERPRET RESULTS: SEE "SOLAR ENERGY AND HOUSING DESIGN" VOLUME 1 PART IV, AA PUBLICATIONS 1994
A34: 1 | B34: Detached, semi-detached, small house or a flat
A35: 2 | B35: Pymouth, London, Aberporth, Cambridge, Birmingham, Sheffield, Belfast, Newcastle, Glasgow, Aberdeen
A36: 3 | B36: Obstruction angle affects all orientations
A37: 4 | B37: If not specified, 0.75 is used as a default

Sheet Calculation sheet
B2: CALCULATION STEPS
A3: Step 1: | B3: Heat Loss Coefficient
B5: ELEMENTS
I6: Area (m²) | L6: U-value (W/m²K) | O6: A x U (W/K)
B7: Roof | I7: ='Energy Index'!D13 -> 0 | K7: x | L7: =IF('Energy Index'!F13>0,'Energy Index'!F13,IF('Energy Index'!D13=0,0,0.45)) -> 0 | N7: = | O7: =I7*L7 -> 0
B8: Windows | I8: =IF(SUM('Energy Index'!J10:J14)>'Energy Index'!D12,'Energy Index'!D12,SUM('Energy Index'!J10:J14)) -> 23.28 | K8: x | L8: =O8/I8 -> 1.4 | N8: = | O8: ='Energy Index'!J10*(IF('Energy Index'!L10>0,'Energy Index'!L10,2.7))+'Energy Index'!J11*(IF('Energy Index'!L11>0,'Energy Index'!L11,2.7))+'Energy Index'!J12*(IF('Energy Index'!L12>0,'Energy Index'!L12,2.7))+'Energy Index'!J13*(IF('Energy Index'!L13>0,'Energy Index'!L13,2.7))+'Energy Index'!J14*(IF('Energy Index'!L14>0,'Energy Index'!L14,2.7)) -> 32.592
B9: Walls (net) | I9: ='Energy Index'!D12-I8 -> 17.72 | K9: x | L9: =IF('Energy Index'!F12>0,'Energy Index'!F12,IF('Energy Index'!D12=0,0,0.45)) -> 0.23 | N9: = | O9: =I9*L9 -> 4.0756
B10: Ground floor | I10: ='Energy Index'!D11 -> 0 | K10: x | L10: =IF('Energy Index'!F11>0,'Energy Index'!F11,IF('Energy Index'!D11=0,0,0.45)) -> 0 | N10: = | O10: =(IF('Energy Index'!D11<='Energy Index'!D10,'Energy Index'!D11,'Energy Index'!D10))*L10 -> 0
B11: Other | I11: ='Energy Index'!D14 -> 0 | K11: x | L11: =IF('Energy Index'!F14>0,'Energy Index'!F14,IF('Energy Index'!D14=0,0,0.45)) -> 0 | N11: = | O11: =I11*L11 -> 0
B13: Ventilation | G13: 0.33 | H13: x | I13: ='Energy Index'!D10*'Energy Index'!L5 -> 128.4 | J13: 2 | K13: x | L13: =IF('Energy Index'!L6>0,'Energy Index'!L6,0.75) -> 0.2 | M13: 3 | N13: = | O13: =G13*I13*L13 -> 8.4744
B15: BUILDING HEAT LOSS COEFFICIENT, W/K | L15: (sum of A x U and ventilation) | N15: = | O15: =SUM(O5:O11)+O13 -> 45.142 | P15: 5
B16: Heat loss per m2 floor area, W/K m2 | I16: =O15 -> 45.142 | J16: 5 | K16: ÷ | L16: ='Energy Index'!D10 -> 53.5 | M16: 1 | N16: = | O16: =I16/L16 -> 0.8437757009
A18: Step 2: | B18: Gross Annual Heat Loss
B20: Mean whole house temperature, ºC | O20: ='Energy Index'!T7 -> 18.5 | P20: 6
B21: Mean annual outdoor temperature, ºC (Table 13.2) | O21: =VLOOKUP('Energy Index'!D6,'Energy index data'!A7:R18,3,) -> 10.6 | P21: 7
B22: Mean temperature difference, ºC | I22: =O20 -> 18.5 | J22: 6 | K22: - | L22: =O21 -> 10.6 | M22: 7 | N22: = | O22: =I22-L22 -> 7.9 | P22: 8
B24: ANNUAL HEAT LOSS, kWh | G24: =IF('Energy Index'!D6="Athens",4.32,8.76) -> 8.76 | H24: x | I24: =O22 -> 7.9 | J24: 8 | K24: x | L24: =O15 -> 45.142 | M24: 5 | N24: = | O24: =G24*I24*O15 -> 3124.006968 | P24: 9
A26: Step 3: | B26: Solar and Internal Heat Gains
B28: Window orientation | C28: Correction factors | E28: Transmitted radiation (table 13.2) | G28: Fraction unobstructed | I28: Glass area, m2 | L28: Fraction retained (Table 13.3) | O28: Net solar gain, kWh
C29: (a) | E29: (b) | G29: (c) | I29: (d) | L29: (e) | O29: (f)
B30: North | C30: =IF(I30=0,0,0.98) -> 0 | D30: x | E30: =IF(I30=0,0,(VLOOKUP('Energy Index'!$D$6,'Energy index data'!$A$7:$R$18,IF('Energy Index'!P10="SG",-1,0)+IF('Energy Index'!P10="DG",0,0)+IF('Energy Index'!P10="LE",1,0)+5,))) -> 0 | F30: x | G30: =IF(I30=0,0,VLOOKUP('Energy Index'!$L$4,'Energy index data'!$A$119:$B$209,2)) -> 0 | H30: x | I30: =IF('Energy Index'!N10>0,IF('Energy Index'!N10<='Energy Index'!J10,'Energy Index'!N10,'Energy Index'!J10),'Energy Index'!J10*0.8) -> 0 | K30: x | L30: =IF('Energy Index'!J10=0,0,(VLOOKUP(IF('Energy Index'!R10=0,IF(SUM('Energy Index'!$J$10:$J$14)*100/'Energy Index'!$D$10>50,50,IF(SUM('Energy Index'!$J$10:$J$14)*100/'Energy Index'!$D$10<10,10,SUM('Energy Index'!$J$10:$J$14)*100/'Energy Index'!$D$10)),IF('Energy Index'!R10>50,50,IF('Energy Index'!R10<10,10,'Energy Index'!R10))),'Energy index data'!$A$69:$N$111,HLOOKUP(IF('Energy Index'!T10=0,0.5,IF('Energy Index'!T10<0.2,0.2,IF('Energy Index'!T10>0.8,0.8,'Energy Index'!T10))),'Energy index data'!$A$69:$N$111,43)))) -> 0 | N30: = | O30: =C30*E30*G30*I30*L30 -> 0
B31: NE/NW | C31: =IF(I31=0,0,0.9) -> 0 | D31: x | E31: =IF(I31=0,0,(VLOOKUP('Energy Index'!$D$6,'Energy index data'!$A$7:$R$18,IF('Energy Index'!P11="SG",-1,0)+IF('Energy Index'!P11="DG",0,0)+IF('Energy Index'!P11="LE",1,0)+8,))) -> 0 | F31: x | G31: =IF(I31=0,0,VLOOKUP('Energy Index'!$L$4,'Energy index data'!$A$119:$B$209,2)) -> 0 | H31: x | I31: =IF('Energy Index'!N11>0,IF('Energy Index'!N11<='Energy Index'!J11,'Energy Index'!N11,'Energy Index'!J11),'Energy Index'!J11*0.8) -> 0 | K31: x | L31: =IF('Energy Index'!J11=0,0,(VLOOKUP(IF('Energy Index'!R11=0,IF(SUM('Energy Index'!$J$10:$J$14)*100/'Energy Index'!$D$10>50,50,IF(SUM('Energy Index'!$J$10:$J$14)*100/'Energy Index'!$D$10<10,10,SUM('Energy Index'!$J$10:$J$14)*100/'Energy Index'!$D$10)),IF('Energy Index'!R11>50,50,IF('Energy Index'!R11<10,10,'Energy Index'!R11))),'Energy index data'!$A$69:$N$111,HLOOKUP(IF('Energy Index'!T11=0,0.5,IF('Energy Index'!T11<0.2,0.2,IF('Energy Index'!T11>0.8,0.8,'Energy Index'!T11))),'Energy index data'!$A$69:$N$111,43)))) -> 0 | N31: = | O31: =C31*E31*G31*I31*L31 -> 0
B32: East/West | C32: =IF(I32=0,0,0.8) -> 0.8 | D32: x | E32: =IF(I32=0,0,(VLOOKUP('Energy Index'!$D$6,'Energy index data'!$A$7:$R$18,IF('Energy Index'!P12="SG",-1,0)+IF('Energy Index'!P12="DG",0,0)+IF('Energy Index'!P12="LE",1,0)+11,))) -> 329 | F32: x | G32: =IF(I32=0,0,VLOOKUP('Energy Index'!$L$4,'Energy index data'!$A$119:$B$209,2)) -> 0.814 | H32: x | I32: =IF('Energy Index'!N12>0,IF('Energy Index'!N12<='Energy Index'!J12,'Energy Index'!N12,'Energy Index'!J12),'Energy Index'!J12*0.8) -> 3.92 | K32: x | L32: =IF('Energy Index'!J12=0,0,(VLOOKUP(IF('Energy Index'!R12=0,IF(SUM('Energy Index'!$J$10:$J$14)*100/'Energy Index'!$D$10>50,50,IF(SUM('Energy Index'!$J$10:$J$14)*100/'Energy Index'!$D$10<10,10,SUM('Energy Index'!$J$10:$J$14)*100/'Energy Index'!$D$10)),IF('Energy Index'!R12>50,50,IF('Energy Index'!R12<10,10,'Energy Index'!R12))),'Energy index data'!$A$69:$N$111,HLOOKUP(IF('Energy Index'!T12=0,0.5,IF('Energy Index'!T12<0.2,0.2,IF('Energy Index'!T12>0.8,0.8,'Energy Index'!T12))),'Energy index data'!$A$69:$N$111,43)))) -> 0.835 | N32: = | O32: =C32*E32*G32*I32*L32 -> 701.2660794
B33: SE/SW | C33: =IF(I33=0,0,0.88) -> 0.88 | D33: x | E33: =IF(I33=0,0,(VLOOKUP('Energy Index'!$D$6,'Energy index data'!$A$7:$R$18,IF('Energy Index'!P13="SG",-1,0)+IF('Energy Index'!P13="DG",0,0)+IF('Energy Index'!P13="LE",1,0)+14,))) -> 403 | F33: x | G33: =IF(I33=0,0,VLOOKUP('Energy Index'!$L$4,'Energy index data'!$A$119:$B$209,2)) -> 0.814 | H33: x | I33: =IF('Energy Index'!N13>0,IF('Energy Index'!N13<='Energy Index'!J13,'Energy Index'!N13,'Energy Index'!J13),'Energy Index'!J13*0.8) -> 1.184 | K33: x | L33: =IF('Energy Index'!J13=0,0,(VLOOKUP(IF('Energy Index'!R13=0,IF(SUM('Energy Index'!$J$10:$J$14)*100/'Energy Index'!$D$10>50,50,IF(SUM('Energy Index'!$J$10:$J$14)*100/'Energy Index'!$D$10<10,10,SUM('Energy Index'!$J$10:$J$14)*100/'Energy Index'!$D$10)),IF('Energy Index'!R13>50,50,IF('Energy Index'!R13<10,10,'Energy Index'!R13))),'Energy index data'!$A$69:$N$111,HLOOKUP(IF('Energy Index'!T13=0,0.5,IF('Energy Index'!T13<0.2,0.2,IF('Energy Index'!T13>0.8,0.8,'Energy Index'!T13))),'Energy index data'!$A$69:$N$111,43)))) -> 0.927 | N33: = | O33: =C33*E33*G33*I33*L33 -> 316.8425936
B34: South | C34: =IF(I34=0,0,1) -> 1 | D34: x | E34: =IF(I34=0,0,(VLOOKUP('Energy Index'!$D$6,'Energy index data'!$A$7:$R$18,IF('Energy Index'!P14="SG",-1,0)+IF('Energy Index'!P14="DG",0,0)+IF('Energy Index'!P14="LE",1,0)+17,))) -> 419 | F34: x | G34: =IF(I34=0,0,VLOOKUP('Energy Index'!$L$4,'Energy index data'!$A$119:$B$209,2)) -> 0.814 | H34: x | I34: =IF('Energy Index'!N14>0,IF('Energy Index'!N14<='Energy Index'!J14,'Energy Index'!N14,'Energy Index'!J14),'Energy Index'!J14*0.8) -> 13.52 | K34: x | L34: =IF('Energy Index'!J14=0,0,(VLOOKUP(IF('Energy Index'!R14=0,IF(SUM('Energy Index'!$J$10:$J$14)*100/'Energy Index'!$D$10>50,50,IF(SUM('Energy Index'!$J$10:$J$14)*100/'Energy Index'!$D$10<10,10,SUM('Energy Index'!$J$10:$J$14)*100/'Energy Index'!$D$10)),IF('Energy Index'!R14>50,50,IF('Energy Index'!R14<10,10,'Energy Index'!R14))),'Energy index data'!$A$69:$N$111,HLOOKUP(IF('Energy Index'!T14=0,0.5,IF('Energy Index'!T14<0.2,0.2,IF('Energy Index'!T14>0.8,0.8,'Energy Index'!T14))),'Energy index data'!$A$69:$N$111,43)))) -> 0.751 | N34: = | O34: =C34*E34*G34*I34*L34 -> 3463.020452
B35: TOTAL ANNUAL SOLAR GAIN, kWh | L35: sum of column (f) | O35: =SUM(O30:O34) -> 4481.129125 | P35: 10
B37: INTERNAL GAINS, kWh | L37: (6900 or 5400: see text; plus additional input by user) | N37: = | O37: ='Energy Index'!T4+'Energy Index'!T5 -> 3000 | P37: 11
B39: TOTAL ANNUAL HEAT GAINS, kWh | I39: =O35 -> 4481.129125 | J39: 10 | K39: + | L39: =O37 -> 3000 | M39: 11 | N39: = | O39: =I39+L39 -> 7481.129125 | P39: 12
A41: Step 4: | B41: Gains to loss and Auxiliary Heating Fraction | O41: =IF('Energy Index'!D6="London",O42,IF(('Energy Index'!D6="Plymouth")+OR('Energy Index'!D6="Athens")+OR('Energy Index'!D6="Aberporth")+OR('Energy Index'!D6="Cambridge"),I42,IF(('Energy Index'!D6="Birmingham")+OR('Energy Index'!D6="Sheffield")+OR('Energy Index'!D6="Belfast")+OR('Energy Index'!D6="Newcastle")+OR('Energy Index'!D6="Glasgow")+OR('Energy Index'!D6="Aberdeen"),L42,"Check location"))) -> 0.1246936214
I42: =IF((SUM('Energy Index'!$J$10:$J$14)/'Energy Index'!$D$10)<0.15,B45,IF((SUM('Energy Index'!$J$10:$J$14)/'Energy Index'!$D$10)<0.2,C45,IF((SUM('Energy Index'!$J$10:$J$14)/'Energy Index'!$D$10)<0.25,D45,IF((SUM('Energy Index'!$J$10:$J$14)/'Energy Index'!$D$10)<0.3,E45,F45)))) -> 0.1005628605 | L42: =IF((SUM('Energy Index'!$J$10:$J$14)/'Energy Index'!$D$10)<0.2,H45,IF((SUM('Energy Index'!$J$10:$J$14)/'Energy Index'!$D$10)<0.25,I45,IF((SUM('Energy Index'!$J$10:$J$14)/'Energy Index'!$D$10)<0.3,J45,K45))) -> 0.1027814331 | O42: =IF((SUM('Energy Index'!$J$10:$J$14)/'Energy Index'!$D$10)<0.2,M45,IF((SUM('Energy Index'!$J$10:$J$14)/'Energy Index'!$D$10)<0.3,N45,O45)) -> 0.1246936214
B43: GAINS TO LOSS RATIO (GLR) | I43: =O39 -> 7481.129125 | J43: 12 | K43: ÷ | L43: =O24 -> 3124.006968 | M43: 9 | N43: = | O43: =I43/L43 -> 2.394722292 | P43: 13
B44: AUXILIARY HEATING FRACTION (AHF) | L44: (from table 13.4 for window / floor as 4) | N44: = | O44: =IF('Energy Index'!D6="London",O42,IF(('Energy Index'!D6="Plymouth")+OR('Energy Index'!D6="Athens")+OR('Energy Index'!D6="Aberporth")+OR('Energy Index'!D6="Cambridge"),I42,IF(('Energy Index'!D6="Birmingham")+OR('Energy Index'!D6="Sheffield")+OR('Energy Index'!D6="Belfast")+OR('Energy Index'!D6="Newcastle")+OR('Energy Index'!D6="Glasgow")+OR('Energy Index'!D6="Aberdeen"),L42,"Check location"))) -> 0.1246936214 | P44: 14
B45: =IF($O$43<0.575,1-$O$43,0.913*EXP(VLOOKUP((SUM('Energy Index'!$J$10:$J$14)/'Energy Index'!$D$10),'Energy index data'!$A$23:$D$63,2)*$O$43*(-1))) -> 0.1005628605 | C45: =IF($O$43<0.55,1-$O$43,0.913*EXP(VLOOKUP((SUM('Energy Index'!$J$10:$J$14)/'Energy Index'!$D$10),'Energy index data'!$A$23:$D$63,2)*$O$43*(-1))) -> 0.1005628605 | D45: =IF($O$43<0.5,1-$O$43,0.913*EXP(VLOOKUP((SUM('Energy Index'!$J$10:$J$14)/'Energy Index'!$D$10),'Energy index data'!$A$23:$D$63,2)*$O$43*(-1))) -> 0.1005628605 | E45: =IF($O$43<0.45,1-$O$43,0.913*EXP(VLOOKUP((SUM('Energy Index'!$J$10:$J$14)/'Energy Index'!$D$10),'Energy index data'!$A$23:$D$63,2)*$O$43*(-1))) -> 0.1005628605 | F45: =IF($O$43<0.4,1-$O$43,0.913*EXP(VLOOKUP((SUM('Energy Index'!$J$10:$J$14)/'Energy Index'!$D$10),'Energy index data'!$A$23:$D$63,2)*$O$43*(-1))) -> 0.1005628605 | H45: =IF($O$43<0.5,1-$O$43,0.913*EXP(VLOOKUP((SUM('Energy Index'!$J$10:$J$14)/'Energy Index'!$D$10),'Energy index data'!$A$23:$D$63,3)*$O$43*(-1))) -> 0.1027814331 | I45: =IF($O$43<0.475,1-$O$43,0.913*EXP(VLOOKUP((SUM('Energy Index'!$J$10:$J$14)/'Energy Index'!$D$10),'Energy index data'!$A$23:$D$63,3)*$O$43*(-1))) -> 0.1027814331 | J45: =IF($O$43<0.45,1-$O$43,0.913*EXP(VLOOKUP((SUM('Energy Index'!$J$10:$J$14)/'Energy Index'!$D$10),'Energy index data'!$A$23:$D$63,3)*$O$43*(-1))) -> 0.1027814331 | K45: =IF($O$43<0.4,1-$O$43,0.913*EXP(VLOOKUP((SUM('Energy Index'!$J$10:$J$14)/'Energy Index'!$D$10),'Energy index data'!$A$23:$D$63,3)*$O$43*(-1))) -> 0.1027814331 | M45: =IF($O$43<0.455,1-$O$43,0.913*EXP(VLOOKUP((SUM('Energy Index'!$J$10:$J$14)/'Energy Index'!$D$10),'Energy index data'!$A$23:$D$63,4)*$O$43*(-1))) -> 0.1246936214 | N45: =IF($O$43<0.4,1-$O$43,0.913*EXP(VLOOKUP((SUM('Energy Index'!$J$10:$J$14)/'Energy Index'!$D$10),'Energy index data'!$A$23:$D$63,4)*$O$43*(-1))) -> 0.1246936214 | O45: =IF($O$43<0.35,1-$O$43,0.913*EXP(VLOOKUP((SUM('Energy Index'!$J$10:$J$14)/'Energy Index'!$D$10),'Energy index data'!$A$23:$D$63,4)*$O$43*(-1))) -> 0.1246936214
A46: Step 5: | B46: Annual space heating requirement
B48: CONTINOUS HEATING
B49: Total, kWh | I49: =O44 -> 0.1246936214 | J49: 14 | K49: x | L49: =O24 -> 3124.006968 | M49: 9 | N49: = | O49: =I49*L49 -> 389.5437422 | P49: 15
B50: per m² floor area, kWh/m² | I50: =O49 -> 389.5437422 | J50: 15 | K50: ÷ | L50: ='Energy Index'!D10 -> 53.5 | M50: 1 | N50: = | O50: =I50/L50 -> 7.281191442 | P50: 16
B51: Primary energy equivalent, total, kWh | O51: =O49*VLOOKUP('Energy Index'!T6,'Energy index data'!E124:N127,10) -> 589.8805239
B52: INTERMITENT HEATING
B53: Total, kWh | I53: 0.85 | K53: x | L53: =O49 -> 389.5437422 | M53: 15 | N53: = | O53: =I53*L53 -> 331.1121808 | P53: 17
B54: per m² floor area, kWh/m² | I54: =O53 -> 331.1121808 | J54: 17 | K54: ÷ | L54: ='Energy Index'!D10 -> 53.5 | M54: 1 | N54: = | O54: =I54/L54 -> 6.189012726 | P54: 18
B55: Primary energy equivalent, total, kWh | O55: =O53*VLOOKUP('Energy Index'!T6,'Energy index data'!E124:N127,10) -> 501.3984453
A57: Step 6: | B57: Fuel Costs and CO2 Emissions
B59: CONTINOUS HEATING
B60: Fuel costs, £ | I60: =VLOOKUP('Energy Index'!T6,'Energy index data'!E124:N127,8) -> 0.02 | K60: x | L60: =O49 -> 389.5437422 | M60: 15 | N60: = | O60: =I60*L60 -> 7.790874843
B61: CO2 emissions, kg | I61: =VLOOKUP('Energy Index'!T6,'Energy index data'!E124:N127,9) -> 0.21 | K61: x | L61: =O49 -> 389.5437422 | M61: 15 | N61: = | O61: =I61*L61 -> 81.80418586
B62: INTERMITENT HEATING
B63: Fuel costs, £ | I63: =VLOOKUP('Energy Index'!T6,'Energy index data'!E124:N127,8) -> 0.02 | K63: x | L63: =O53 -> 331.1121808 | M63: 17 | N63: = | O63: =I63*L63 -> 6.622243617
B64: CO2 emissions, kg | I64: =VLOOKUP('Energy Index'!T6,'Energy index data'!E124:N127,9) -> 0.21 | K64: x | L64: =O53 -> 331.1121808 | M64: 17 | N64: = | O64: =I64*L64 -> 69.53355798
A66: Step 7: | B66: Overheating Risk
B68: EXCESS GAINS, kWh
B69: =IF('Energy Index'!J10+'Energy Index'!J14>'Energy Index'!J12+AND('Energy Index'!J10+'Energy Index'!J14>'Energy Index'!J13),B71,IF('Energy Index'!J12>'Energy Index'!J13,B73,B72)) -> 0.75 | C69: =O35 -> 4481.129125 | D69: + | E69: 0.75 | F69: x ( | G69: =O37 -> 3000 | H69: + | I69: =O49 -> 389.5437422 | K69: - | L69: =O24 -> 3124.006968 | M69: ) | N69: = | O69: =IF(INT(B69*C69+E69*(G69+I69-L69))>0,B69*C69+E69*(G69+I69-L69),0) -> 3559.999425 | P69: 19
B70: (see bellow) | C70: 10 | G70: 11 | I70: 15 | L70: 9
B71: 0.75 | C71: for North & South
B72: 0.84 | C72: for NE/NW/SE/SW | M72: PEAK TEMPERATURES, ºC (From Fig. 13.3 and 19) | O72: =IF('Energy Index'!J10+'Energy Index'!J14>'Energy Index'!J12+AND('Energy Index'!J10+'Energy Index'!J14>'Energy Index'!J13),VLOOKUP($O$69,'Energy index data'!$W$23:$Z$63,2),IF('Energy Index'!J12>'Energy Index'!J13,VLOOKUP($O$69,'Energy index data'!$W$23:$Z$63,4),VLOOKUP($O$69,'Energy index data'!$W$23:$Z$63,3))) -> 29.4
B73: 0.94 | C73: for East & West | M73: NUMBER OF HOURS ABOVE 27ºC (From Fig. 13.3 and 19) | O73: =IF('Energy Index'!J10+'Energy Index'!J14>'Energy Index'!J12+AND('Energy Index'!J10+'Energy Index'!J14>'Energy Index'!J13),VLOOKUP($O$69,'Energy index data'!$P$23:$S$63,2),IF('Energy Index'!J12>'Energy Index'!J13,VLOOKUP($O$69,'Energy index data'!$P$23:$S$63,4),VLOOKUP($O$69,'Energy index data'!$P$23:$S$63,3))) -> 128

Sheet Energy index data
A1: Table 13.2. Mean annual outdoor temperature and solar radiation through single (SG), double (DG) and low-emissivity (LE) glazing
A3: Location | B3: Latitude | C3: Temp. | N3: Transmitted solar radiation, kWh/m² year
C4: °C | E4: North | H4: North-east | K4: East and West | N4: South-east | Q4: South
H5: North-west | N5: South-west
D6: SG | E6: DG | F6: LE | G6: SG | H6: DG | I6: LE | J6: SG | K6: DG | L6: LE | M6: SG | N6: DG | O6: LE | P6: SG | Q6: DG | R6: LE
A7: Athens | B7: 37°58' | C7: 12.27 | D7: =0.8*169 -> 135.2 | E7: =0.7*169 -> 118.3 | F7: =0.65*169 -> 109.85 | G7: 0 | H7: 0 | I7: 0 | J7: =0.8*400 -> 320 | K7: =0.7*400 -> 280 | L7: =0.65*400 -> 260 | M7: 0 | N7: 0 | O7: 0 | P7: =0.8*607 -> 485.6 | Q7: 420 | R7: =0.65*600 -> 390
A8: London | B8: 51°28' | C8: 10.6 | D8: 265.6 | E8: 209.79 | F8: 189 | G8: 325.76 | H8: 259.27 | I8: 233 | J8: 452.38 | K8: 365.21 | L8: 329 | M8: 553.31 | N8: 447.91 | O8: 403 | P8: 579.68 | Q8: 465.49 | R8: 419
A9: Aberporth | B9: 52°08' | C9: 9.7 | D9: 296.08 | E9: 233.56 | F9: 210 | G9: 371.18 | H9: 295.55 | I9: 266 | J9: 513.24 | K9: 415.42 | L9: 374 | M9: 613.07 | N9: 495.54 | O9: 446 | P9: 631.38 | Q9: 507.51 | R9: 457
A10: Cambridge | B10: 52°20' | C10: 9.8 | D10: 277 | E10: 219 | F10: 197 | G10: 340 | H10: 270 | I10: 243 | J10: 470 | K10: 380 | L10: 342 | M10: 573 | N10: 464 | O10: 418 | P10: 600 | Q10: 484 | R10: 436
A11: Birmingham | B11: 52°28' | C11: 9.5 | D11: 279.37 | E11: 219.88 | F11: 198 | G11: 338.31 | H11: 268.45 | I11: 242 | J11: 459.82 | K11: 371.7 | L11: 335 | M11: 558.43 | N11: 451.17 | O11: 406 | P11: 585.47 | Q11: 464.12 | R11: 418
A12: Sheffield | B12: 53°23' | C12: 9.5 | D12: 274 | E12: 216 | F12: 194 | G12: 327 | H12: 261 | I12: 235 | J12: 442 | K12: 356 | L12: 320 | M12: 537 | N12: 434 | O12: 391 | P12: 564 | Q12: 454 | R12: 409
A13: Belfast | B13: 54°39' | C13: 8.9 | D13: 268.56 | E13: 211.55 | F13: 190 | G13: 326.84 | H13: 260.08 | I13: 234 | J13: 449.28 | K13: 363.09 | L13: 327 | M13: 550.6 | N13: 445.92 | O13: 401 | P13: 579.3 | Q13: 467.04 | R13: 420
A14: Newcastle | B14: 55°01' | C14: 9.1 | D14: 267.18 | E14: 210.44 | F14: 189 | G14: 323.05 | H14: 257.48 | I14: 232 | J14: 445.96 | K14: 360.01 | L14: 324 | M14: 551.67 | N14: 447.21 | O14: 402 | P14: 584.1 | Q14: 471.76 | R14: 425
A15: Glasgow | B15: 55°52' | C15: 8.9 | D15: 261.0393789 | E15: 206.1933123 | F15: 186 | G15: 316.5651949 | H15: 251.8910195 | I15: 227 | J15: 429.4111987 | K15: 347.0068966 | L15: 312 | M15: 523.9632385 | N15: 425.5436324 | O15: 383 | P15: 552.2700855 | Q15: 447.6180912 | R15: 403
A16: Aberdeen | B16: 57°12' | C16: 7.7 | D16: 258.25 | E16: 203.99 | F16: 184 | G16: 313.51 | H16: 249.46 | I16: 225 | J16: 436.58 | K16: 352.8 | L16: 318 | M16: 549.2 | N16: 446.04 | O16: 401 | P16: 589.2 | Q16: 477.55 | R16: 430
A18: Plymouth | B18: 50°22' | C18: 10.7 | D18: 308.02 | E18: 242.73 | F18: 218 | G18: 387.39 | H18: 308.4 | I18: 278 | J18: 542.91 | K18: 439.27 | L18: 395 | M18: 654.96 | N18: 530.39 | O18: 477 | P18: 677.26 | Q18: 543.91 | R18: 490
A20: Values of b as function of window/floor ratio | P20: Figure 13.3: Excess Gains: Peak temperatures and number of hours above 27°C
P21: Hours>27°C | W21: Peak Temperature, °C
A22: W / F | B22: South | C22: North | D22: London | P22: Excess Gains | Q22: South | R22: SW | S22: West | W22: Excess Gains | X22: South | Y22: SW | Z22: West
A23: 0.1 | B23: =-0.7623*A23^2-0.7746*A23+1.3952 -> 1.310117 | C23: =-1.9881*A23^2+0.232*A23+1.1799 -> 1.183219 | D23: =-0.9794*A23^2-0.3843*A23+1.1777 -> 1.129476 | P23: 0 | W23: 0
A24: 0.11 | B24: 1.30077017 | C24: =-1.9881*A24^2+0.232*A24+1.1799 -> 1.18136399 | D24: =-0.9794*A24^2-0.3843*A24+1.1777 -> 1.12357626 | P24: 200 | W24: 200
A25: 0.12 | B25: 1.29127088 | C25: 1.17911136 | D25: 1.11748064 | P25: 400 | W25: 400
A26: 0.13 | B26: 1.28161913 | C26: 1.17646111 | D26: 1.11118914 | P26: 600 | W26: 600
A27: 0.14 | B27: 1.27181492 | C27: 1.17341324 | D27: 1.10470176 | P27: 800 | W27: 800
A28: 0.15 | B28: 1.26185825 | C28: 1.16996775 | D28: 1.0980185 | P28: 1000 | W28: 1000
A29: 0.16 | B29: 1.25174912 | C29: 1.16612464 | D29: 1.09113936 | P29: 1200 | W29: 1200
A30: 0.17 | B30: 1.24148753 | C30: 1.16188391 | D30: 1.08406434 | P30: 1400 | W30: 1400
A31: 0.18 | B31: 1.23107348 | C31: 1.15724556 | D31: 1.07679344 | P31: 1600 | S31: =ROUND(-95.892+0.0572591*P31+0.00000643633*P31^2,0) -> 12 | W31: 1600 | Z31: =ROUND(24.7132+0.00216684*W31-0.0000000776485*W31^2,1) -> 28
A32: 0.19 | B32: =-0.7623*A32^2-0.7746*A32+1.3952 -> 1.22050697 | C32: 1.15220959 | D32: 1.06932666 | P32: 1800 | Q32: =ROUND(-25.5757-0.0103416*P32+0.0000162917*P32^2,) -> 9 | R32: 12 | S32: 28 | W32: 1800 | X32: =ROUND(25.1378+0.00146185*W32-0.0000000591501*W32^2,1) -> 27.6 | Y32: =ROUND(24.0035+0.00229225*W32-0.0000000984205*W32^2,1) -> 27.8 | Z32: 28.4
A33: 0.2 | B33: 1.209788 | C33: 1.146776 | D33: 1.061664 | P33: 2000 | Q33: 19 | R33: =ROUND(-127.502+0.0571589*P33+0.00000967962*P33^2,0) -> 26 | S33: 44 | W33: 2000 | X33: 27.8 | Y33: 28.2 | Z33: 28.7
A34: 0.21 | B34: 1.19891657 | C34: 1.14094479 | D34: 1.05380546 | P34: 2200 | Q34: 31 | R34: 45 | S34: 61 | W34: 2200 | X34: 28.1 | Y34: 28.6 | Z34: 29.1
A35: 0.22 | B35: 1.18789268 | C35: 1.13471596 | D35: 1.04575104 | P35: 2400 | Q35: 43 | R35: 65 | S35: 79 | W35: 2400 | X35: 28.3 | Y35: 28.9 | Z35: 29.5
A36: 0.23 | B36: 1.17671633 | C36: 1.12808951 | D36: 1.03750074 | P36: 2600 | Q36: 58 | R36: 87 | S36: 96 | W36: 2600 | X36: 28.5 | Y36: 29.3 | Z36: 29.8
A37: 0.24 | B37: 1.16538752 | C37: 1.12106544 | D37: 1.02905456 | P37: 2800 | Q37: 73 | R37: 108 | S37: 115 | W37: 2800 | X37: 28.8 | Y37: 29.7 | Z37: 30.2
A38: 0.25 | B38: 1.15390625 | C38: 1.11364375 | D38: 1.0204125 | P38: 3000 | Q38: 90 | R38: 131 | S38: 134 | W38: 3000 | X38: 29 | Y38: 30 | Z38: 30.5
A39: 0.26 | B39: =-0.7623*A39^2-0.7746*A39+1.3952 -> 1.14227252 | C39: 1.10582444 | D39: 1.01157456 | P39: 3200 | Q39: 108 | R39: 155 | S39: 153 | W39: 3200 | X39: 29.2 | Y39: 30.3 | Z39: 30.9
A40: 0.27 | B40: 1.13048633 | C40: =-1.9881*A40^2+0.232*A40+1.1799 -> 1.09760751 | D40: =-0.9794*A40^2-0.3843*A40+1.1777 -> 1.00254074 | P40: 3400 | Q40: 128 | R40: 179 | S40: 173 | W40: 3400 | X40: 29.4 | Y40: 30.7 | Z40: 31.2
A41: 0.28 | B41: 1.11854768 | C41: 1.08899296 | D41: 0.99331104 | P41: 3600 | Q41: 148 | R41: 204 | S41: 194 | W41: 3600 | X41: 29.6 | Y41: 31 | Z41: 31.5
A42: 0.29 | B42: 1.10645657 | C42: 1.07998079 | D42: 0.98388546 | P42: 3800 | Q42: 170 | R42: 229 | S42: 215 | W42: 3800 | X42: 29.8 | Y42: 31.3 | Z42: 31.8
A43: 0.3 | B43: 1.094213 | C43: 1.070571 | D43: 0.974264 | P43: 4000 | Q43: 194 | R43: 256 | S43: 236 | W43: 4000 | X43: 30 | Y43: 31.6 | Z43: 32.1
A44: 0.31 | B44: 1.08181697 | C44: 1.06076359 | D44: 0.96444666 | P44: 4200 | Q44: 218 | R44: 283 | S44: 258 | W44: 4200 | X44: 30.2 | Y44: 31.9 | Z44: 32.4
A45: 0.32 | B45: 1.06926848 | C45: 1.05055856 | D45: 0.95443344 | P45: 4400 | Q45: 244 | R45: 311 | S45: 281 | W45: 4400 | X45: 30.4 | Y45: 32.2 | Z45: 32.7
A46: 0.33 | B46: 1.05656753 | C46: 1.03995591 | D46: 0.94422434 | P46: 4600 | Q46: 272 | R46: 340 | S46: 304 | W46: 4600 | X46: 30.6 | Y46: 32.5 | Z46: 33
A47: 0.34 | B47: 1.04371412 | C47: 1.02895564 | D47: 0.93381936 | P47: 4800 | Q47: 300 | R47: 370 | S47: 327 | W47: 4800 | X47: 30.8 | Y47: 32.7 | Z47: 33.3
A48: 0.35 | B48: 1.03070825 | C48: 1.01755775 | D48: 0.9232185 | P48: 5000 | Q48: 330 | R48: 400 | S48: 351 | W48: 5000 | X48: 31 | Y48: 33 | Z48: 33.6
A49: 0.36 | B49: 1.01754992 | C49: 1.00576224 | D49: 0.91242176 | P49: 5200 | Q49: 361 | R49: 431 | S49: 376 | W49: 5200 | X49: 31.1 | Y49: 33.3 | Z49: 33.9
A50: 0.37 | B50: 1.00423913 | C50: 0.99356911 | D50: 0.90142914 | P50: 5400 | Q50: 394 | R50: 463 | S50: 401 | W50: 5400 | X50: 31.3 | Y50: 33.5 | Z50: 34.1
A51: 0.38 | B51: 0.99077588 | C51: 0.98097836 | D51: 0.89024064 | P51: 5600 | Q51: 427 | R51: 496 | S51: 427 | W51: 5600 | X51: 31.5 | Y51: 33.8 | Z51: 34.4
A52: 0.39 | B52: 0.97716017 | C52: 0.96798999 | D52: 0.87885626 | P52: 5800 | Q52: 462 | R52: 530 | S52: 453 | W52: 5800 | X52: 31.6 | Y52: 34 | Z52: 34.7
A53: 0.4 | B53: 0.963392 | C53: 0.954604 | D53: 0.867276 | P53: 6000 | Q53: 499 | R53: 564 | S53: 479 | W53: 6000 | X53: 31.8 | Y53: 34.2 | Z53: 34.9
A54: 0.41 | B54: 0.94947137 | C54: 0.94082039 | D54: 0.85549986 | P54: 6200 | Q54: 537 | R54: 599 | S54: 507 | W54: 6200 | X54: 31.9 | Y54: 34.4 | Z54: 35.2
A55: 0.42 | B55: =-0.7623*A55^2-0.7746*A55+1.3952 -> 0.93539828 | C55: 0.92663916 | D55: 0.84352784 | P55: 6400 | Q55: 576 | R55: 635 | S55: 534 | W55: 6400 | X55: 32.1 | Y55: 34.6 | Z55: 35.4
A56: 0.43 | B56: 0.92117273 | C56: =-1.9881*A56^2+0.232*A56+1.1799 -> 0.91206031 | D56: =-0.9794*A56^2-0.3843*A56+1.1777 -> 0.83135994 | P56: 6600 | Q56: 616 | R56: 671 | S56: 562 | W56: 6600 | X56: 32.2 | Y56: 34.8 | Z56: 35.6
A57: 0.44 | B57: 0.90679472 | C57: 0.89708384 | D57: 0.81899616 | P57: 6800 | Q57: 657 | R57: 709 | S57: 591 | W57: 6800 | X57: 32.3 | Y57: 35 | Z57: 35.9
A58: 0.45 | B58: 0.89226425 | C58: 0.88170975 | D58: 0.8064365 | P58: 7000 | Q58: 700 | R58: 747 | S58: 620 | W58: 7000 | X58: 32.5 | Y58: 35.2 | Z58: 36.1
A59: 0.46 | B59: 0.87758132 | C59: 0.86593804 | D59: 0.79368096 | P59: 7200 | Q59: =ROUND(-25.5757-0.0103416*P59+0.0000162917*P59^2,) -> 745 | R59: =ROUND(-127.502+0.0571589*P59+0.00000967962*P59^2,0) -> 786 | S59: =ROUND(-95.892+0.0572591*P59+0.00000643633*P59^2,0) -> 650 | W59: 7200 | X59: =ROUND(25.1378+0.00146185*W59-0.0000000591501*W59^2,1) -> 32.6 | Y59: =ROUND(24.0035+0.00229225*W59-0.0000000984205*W59^2,1) -> 35.4 | Z59: =ROUND(24.7132+0.00216684*W59-0.0000000776485*W59^2,1) -> 36.3
A60: 0.47 | B60: 0.86274593 | C60: 0.84976871 | D60: 0.78072954 | P60: 7400 | Q60: 790 | R60: 826 | S60: 680 | W60: 7400 | X60: 32.7 | Y60: 35.6 | Z60: 36.5
A61: 0.48 | B61: 0.84775808 | C61: 0.83320176 | D61: 0.76758224 | P61: 7600 | Q61: 837 | R61: 866 | S61: 711 | W61: 7600 | X61: 32.8 | Y61: 35.7 | Z61: 36.7
A62: 0.49 | B62: 0.83261777 | C62: 0.81623719 | D62: 0.75423906 | P62: 7800 | Q62: 885 | R62: 907 | S62: 742 | W62: 7800 | X62: 32.9 | Y62: 35.9 | Z62: 36.9
A63: 0.5 | B63: 0.817325 | C63: 0.798875 | D63: 0.7407 | P63: 8000 | Q63: 934 | R63: 949 | S63: 774 | W63: 8000 | X63: 33 | Y63: 36 | Z63: 37.1
P64: 8200 | Q64: 985 | R64: 992 | S64: 806 | W64: 8200 | X64: 33.1 | Y64: 36.2 | Z64: 37.3
P65: 8400 | Q65: 1037 | R65: 1036 | S65: 839 | W65: 8400 | X65: 33.2 | Y65: 36.3 | Z65: 37.4
P66: 8600 | Q66: 1090 | R66: 1080 | S66: 873 | W66: 8600 | X66: 33.3 | Y66: 36.4 | Z66: 37.6
P67: 8800 | Q67: 1145 | R67: 1125 | S67: 906 | W67: 8800 | X67: 33.4 | Y67: 36.6 | Z67: 37.8
A68: Fraction of solar radiation retained | P68: 9000 | Q68: 1201 | R68: 1171 | S68: 941 | W68: 9000 | X68: 33.5 | Y68: 36.7 | Z68: 37.9
A69: W/F / R | B69: 0.2 | C69: 0.25 | D69: 0.3 | E69: 0.35 | F69: 0.4 | G69: 0.45 | H69: 0.5 | I69: 0.55 | J69: 0.6 | K69: 0.65 | L69: 0.7 | M69: 0.75 | N69: 0.8 | P69: 9200 | Q69: 1258 | R69: 1218 | S69: 976 | W69: 9200 | X69: 33.6 | Y69: 36.8 | Z69: 38.1
A70: 10 | B70: 0.952 | C70: 0.947 | D70: 0.943 | E70: 0.939 | F70: 0.935 | G70: 0.931 | H70: 0.927 | I70: 0.922 | J70: 0.918 | K70: 0.914 | L70: 0.91 | M70: 0.906 | N70: 0.902 | P70: 9400 | Q70: 1317 | R70: 1265 | S70: 1011 | W70: 9400 | X70: 33.7 | Y70: 36.9 | Z70: 38.2
A71: 11 | B71: 0.948 | C71: 0.943 | D71: 0.939 | E71: 0.934 | F71: 0.929 | G71: 0.925 | H71: 0.92 | I71: 0.916 | J71: 0.911 | K71: 0.907 | L71: 0.902 | M71: 0.897 | N71: 0.893 | P71: 9600 | Q71: 1377 | R71: 1313 | S71: 1047 | W71: 9600 | X71: 33.7 | Y71: 36.9 | Z71: 38.4
A72: 12 | B72: 0.944 | C72: 0.939 | D72: 0.934 | E72: 0.929 | F72: 0.924 | G72: 0.919 | H72: 0.914 | I72: 0.909 | J72: 0.904 | K72: 0.899 | L72: 0.894 | M72: 0.889 | N72: 0.884 | P72: 9800 | Q72: 1438 | R72: 1362 | S72: 1083 | W72: 9800 | X72: 33.8 | Y72: 37 | Z72: 38.5
A73: 13 | B73: 0.94 | C73: 0.935 | D73: 0.929 | E73: 0.924 | F73: 0.918 | G73: 0.913 | H73: 0.908 | I73: 0.902 | J73: 0.897 | K73: 0.891 | L73: 0.886 | M73: 0.881 | N73: 0.875 | P73: 10000 | Q73: 1500 | R73: 1412 | S73: 1120 | W73: 10000 | X73: 33.8 | Y73: 37.1 | Z73: 38.6
A74: 14 | B74: 0.936 | C74: 0.93 | D74: 0.925 | E74: 0.919 | F74: 0.913 | G74: 0.907 | H74: 0.901 | I74: 0.895 | J74: 0.89 | K74: 0.884 | L74: 0.878 | M74: 0.872 | N74: 0.866 | P74: (based on Kew, orientation South, South-west and West)
A75: 15 | B75: 0.933 | C75: 0.926 | D75: 0.92 | E75: 0.914 | F75: 0.908 | G75: 0.901 | H75: 0.895 | I75: 0.889 | J75: 0.883 | K75: 0.876 | L75: 0.87 | M75: 0.864 | N75: 0.858 | P75: Data in blue are extrapolated and have not been validated on models.
A76: 16 | B76: 0.929 | C76: 0.922 | D76: 0.915 | E76: 0.909 | F76: 0.902 | G76: 0.895 | H76: 0.889 | I76: 0.882 | J76: 0.875 | K76: 0.869 | L76: 0.862 | M76: 0.855 | N76: 0.849
A77: 17 | B77: 0.925 | C77: 0.918 | D77: 0.911 | E77: 0.904 | F77: 0.897 | G77: 0.889 | H77: 0.882 | I77: 0.875 | J77: 0.868 | K77: 0.861 | L77: 0.854 | M77: 0.847 | N77: 0.84
A78: 18 | B78: 0.921 | C78: 0.914 | D78: 0.906 | E78: 0.899 | F78: 0.891 | G78: 0.884 | H78: 0.876 | I78: 0.869 | J78: 0.861 | K78: 0.854 | L78: 0.846 | M78: 0.839 | N78: 0.831
A79: 19 | B79: 0.917 | C79: 0.909 | D79: 0.901 | E79: 0.893 | F79: 0.886 | G79: 0.878 | H79: 0.87 | I79: 0.862 | J79: 0.854 | K79: 0.846 | L79: 0.838 | M79: 0.83 | N79: 0.822
A80: 20 | B80: 0.913 | C80: 0.905 | D80: 0.897 | E80: 0.888 | F80: 0.88 | G80: 0.872 | H80: 0.863 | I80: 0.855 | J80: 0.847 | K80: 0.838 | L80: 0.83 | M80: 0.822 | N80: 0.813
A81: 21 | B81: 0.909 | C81: 0.901 | D81: 0.892 | E81: 0.883 | F81: 0.875 | G81: 0.866 | H81: 0.858 | I81: 0.849 | J81: 0.841 | K81: 0.832 | L81: 0.823 | M81: 0.815 | N81: 0.806
A82: 22 | B82: 0.905 | C82: 0.896 | D82: 0.887 | E82: 0.879 | F82: 0.87 | G82: 0.861 | H82: 0.852 | I82: 0.843 | J82: 0.834 | K82: 0.826 | L82: 0.817 | M82: 0.808 | N82: 0.799
A83: 23 | B83: 0.901 | C83: 0.892 | D83: 0.883 | E83: 0.874 | F83: 0.865 | G83: 0.855 | H83: 0.846 | I83: 0.837 | J83: 0.828 | K83: 0.819 | L83: 0.81 | M83: 0.801 | N83: 0.792
A84: 24 | B84: 0.897 | C84: 0.887 | D84: 0.878 | E84: 0.869 | F84: 0.859 | G84: 0.85 | H84: 0.841 | I84: 0.831 | J84: 0.822 | K84: 0.813 | L84: 0.803 | M84: 0.794 | N84: 0.785
A85: 25 | B85: 0.893 | C85: 0.883 | D85: 0.873 | E85: 0.864 | F85: 0.854 | G85: 0.845 | H85: 0.835 | I85: 0.825 | J85: 0.816 | K85: 0.806 | L85: 0.797 | M85: 0.787 | N85: 0.777
A86: 26 | B86: 0.888 | C86: 0.879 | D86: 0.869 | E86: 0.859 | F86: 0.849 | G86: 0.839 | H86: 0.829 | I86: 0.819 | J86: 0.81 | K86: 0.8 | L86: 0.79 | M86: 0.78 | N86: 0.77
A87: 27 | B87: 0.884 | C87: 0.874 | D87: 0.864 | E87: 0.854 | F87: 0.844 | G87: 0.834 | H87: 0.824 | I87: 0.814 | J87: 0.803 | K87: 0.793 | L87: 0.783 | M87: 0.773 | N87: 0.763
A88: 28 | B88: 0.88 | C88: 0.87 | D88: 0.859 | E88: 0.849 | F88: 0.839 | G88: 0.828 | H88: 0.818 | I88: 0.808 | J88: 0.797 | K88: 0.787 | L88: 0.777 | M88: 0.766 | N88: 0.756
A89: 29 | B89: 0.876 | C89: 0.865 | D89: 0.855 | E89: 0.844 | F89: 0.833 | G89: 0.823 | H89: 0.812 | I89: 0.802 | J89: 0.791 | K89: 0.781 | L89: 0.77 | M89: 0.759 | N89: 0.749
A90: 30 | B90: 0.872 | C90: 0.861 | D90: 0.85 | E90: 0.839 | F90: 0.828 | G90: 0.817 | H90: 0.807 | I90: 0.796 | J90: 0.785 | K90: 0.774 | L90: 0.763 | M90: 0.752 | N90: 0.742
A91: 31 | B91: 0.868 | C91: 0.857 | D91: 0.846 | E91: 0.835 | F91: 0.824 | G91: 0.813 | H91: 0.802 | I91: 0.791 | J91: 0.78 | K91: 0.769 | L91: 0.758 | M91: 0.747 | N91: 0.736
A92: 32 | B92: 0.864 | C92: 0.853 | D92: 0.842 | E92: 0.831 | F92: 0.82 | G92: 0.808 | H92: 0.797 | I92: 0.786 | J92: 0.775 | K92: 0.764 | L92: 0.753 | M92: 0.741 | N92: 0.73
A93: 33 | B93: 0.861 | C93: 0.849 | D93: 0.838 | E93: 0.827 | F93: 0.815 | G93: 0.804 | H93: 0.793 | I93: 0.781 | J93: 0.77 | K93: 0.759 | L93: 0.747 | M93: 0.736 | N93: 0.725
A94: 34 | B94: 0.857 | C94: 0.845 | D94: 0.834 | E94: 0.822 | F94: 0.811 | G94: 0.799 | H94: 0.788 | I94: 0.776 | J94: 0.765 | K94: 0.753 | L94: 0.742 | M94: 0.73 | N94: 0.719
A95: 35 | B95: 0.853 | C95: 0.842 | D95: 0.83 | E95: 0.818 | F95: 0.807 | G95: 0.795 | H95: 0.783 | I95: 0.772 | J95: 0.76 | K95: 0.748 | L95: 0.737 | M95: 0.725 | N95: 0.713
A96: 36 | B96: 0.85 | C96: 0.838 | D96: 0.826 | E96: 0.814 | F96: 0.802 | G96: 0.79 | H96: 0.779 | I96: 0.767 | J96: 0.755 | K96: 0.743 | L96: 0.731 | M96: 0.719 | N96: 0.708
A97: 37 | B97: 0.846 | C97: 0.834 | D97: 0.822 | E97: 0.81 | F97: 0.798 | G97: 0.786 | H97: 0.774 | I97: 0.762 | J97: 0.75 | K97: 0.738 | L97: 0.726 | M97: 0.714 | N97: 0.702
A98: 38 | B98: 0.842 | C98: 0.83 | D98: 0.818 | E98: 0.806 | F98: 0.794 | G98: 0.781 | H98: 0.769 | I98: 0.757 | J98: 0.745 | K98: 0.733 | L98: 0.721 | M98: 0.708 | N98: 0.696
A99: 39 | B99: 0.839 | C99: 0.826 | D99: 0.814 | E99: 0.802 | F99: 0.789 | G99: 0.777 | H99: 0.765 | I99: 0.752 | J99: 0.74 | K99: 0.728 | L99: 0.715 | M99: 0.703 | N99: 0.691
A100: 40 | B100: 0.835 | C100: 0.823 | D100: 0.81 | E100: 0.798 | F100: 0.785 | G100: 0.773 | H100: 0.76 | I100: 0.748 | J100: 0.735 | K100: 0.723 | L100: 0.71 | M100: 0.698 | N100: 0.685
A101: 41 | B101: 0.832 | C101: 0.819 | D101: 0.806 | E101: 0.794 | F101: 0.781 | G101: 0.768 | H101: 0.756 | I101: 0.743 | J101: 0.73 | K101: 0.718 | L101: 0.705 | M101: 0.692 | N101: 0.68
A102: 42 | B102: 0.828 | C102: 0.815 | D102: 0.803 | E102: 0.79 | F102: 0.777 | G102: 0.764 | H102: 0.751 | I102: 0.738 | J102: 0.726 | K102: 0.713 | L102: 0.7 | M102: 0.687 | N102: 0.674
A103: 43 | B103: 0.825 | C103: 0.812 | D103: 0.799 | E103: 0.786 | F103: 0.773 | G103: 0.76 | H103: 0.747 | I103: 0.734 | J103: 0.721 | K103: 0.708 | L103: 0.695 | M103: 0.682 | N103: 0.669
A104: 44 | B104: 0.822 | C104: 0.808 | D104: 0.795 | E104: 0.782 | F104: 0.769 | G104: 0.756 | H104: 0.743 | I104: 0.729 | J104: 0.716 | K104: 0.703 | L104: 0.69 | M104: 0.677 | N104: 0.664
A105: 45 | B105: 0.818 | C105: 0.805 | D105: 0.792 | E105: 0.778 | F105: 0.765 | G105: 0.752 | H105: 0.738 | I105: 0.725 | J105: 0.712 | K105: 0.698 | L105: 0.685 | M105: 0.672 | N105: 0.658
A106: 46 | B106: 0.815 | C106: 0.801 | D106: 0.788 | E106: 0.774 | F106: 0.761 | G106: 0.747 | H106: 0.734 | I106: 0.72 | J106: 0.707 | K106: 0.693 | L106: 0.68 | M106: 0.666 | N106: 0.653
A107: 47 | B107: 0.812 | C107: 0.798 | D107: 0.784 | E107: 0.771 | F107: 0.757 | G107: 0.743 | H107: 0.73 | I107: 0.716 | J107: 0.702 | K107: 0.689 | L107: 0.675 | M107: 0.661 | N107: 0.648
A108: 48 | B108: 0.808 | C108: 0.794 | D108: 0.781 | E108: 0.767 | F108: 0.753 | G108: 0.739 | H108: 0.725 | I108: 0.711 | J108: 0.698 | K108: 0.684 | L108: 0.67 | M108: 0.656 | N108: 0.642
A109: 49 | B109: 0.805 | C109: 0.791 | D109: 0.777 | E109: 0.763 | F109: 0.749 | G109: 0.735 | H109: 0.721 | I109: 0.707 | J109: 0.693 | K109: 0.679 | L109: 0.665 | M109: 0.651 | N109: 0.637
A110: 50 | B110: 0.802 | C110: 0.787 | D110: 0.773 | E110: 0.759 | F110: 0.745 | G110: 0.731 | H110: 0.717 | I110: 0.702 | J110: 0.688 | K110: 0.674 | L110: 0.66 | M110: 0.646 | N110: 0.632
B111: 2 | C111: 3 | D111: 4 | E111: 5 | F111: 6 | G111: 7 | H111: 8 | I111: 9 | J111: 10 | K111: 11 | L111: 12 | M111: 13 | N111: 14
A116: Figure 13.2. Fraction of unobstructed radiation as a function of obstruction angle
A117: (y = 1E-05x3 - 0.00072x2 + 0.00581x + 0.9854; 5° to 35°)
A118: Angle
A119: 0 | B119: 1
A120: 1 | B120: 1
A121: 2 | B121: 1 | E121: Fuels
A122: 3 | B122: 0.999 | H122: Seasonal conversion efficiency | I122: PEU eq. | J122: CO2 em. | L122: SEASONAL
A123: 4 | B123: 0.999 | G123: Price, £/kWh | J123: kg/kWh | L123: Price | M123: CO2 | N123: PEU eq.
A124: 5 | B124: 0.998 | E124: Gas | G124: 0.014 | H124: 0.7 | I124: 1.06 | J124: 0.19 | L124: =G124/H124 -> 0.02 | M124: 0.21 | N124: =I124/H124 -> 1.514285714
A125: 6 | B125: 0.997 | E125: Oil | G125: 0.012 | H125: 0.7 | I125: 1.08 | J125: 0.29 | L125: =G125/H125 -> 0.01714285714 | M125: =J125/H125 -> 0.4142857143 | N125: =I125/H125 -> 1.542857143
A126: 7 | B126: 0.995 | E126: Electricity | G126: 0.071 | H126: 1 | I126: 3.73 | J126: 0.7 | L126: =G126/H126 -> 0.071 | M126: =J126/H126 -> 0.7 | N126: =I126/H126 -> 3.73
A127: 8 | B127: 0.991 | E127: Coal | G127: 0.009 | H127: 0.7 | I127: 1.02 | J127: 0.32 | L127: =G127/H127 -> 0.01285714286 | M127: =J127/H127 -> 0.4571428571 | N127: =I127/H127 -> 1.457142857
A128: 9 | B128: 0.987
A129: 10 | B129: 0.982
A130: 11 | B130: 0.976
A131: 12 | B131: 0.969
A132: 13 | B132: 0.962
A133: 14 | B133: 0.954
A134: 15 | B134: 0.945
A135: 16 | B135: 0.935
A136: 17 | B136: 0.926
A137: 18 | B137: 0.915
A138: 19 | B138: 0.905
A139: 20 | B139: 0.894
A140: 21 | B140: 0.883
A141: 22 | B141: 0.871
A142: 23 | B142: 0.86
A143: 24 | B143: 0.848
A144: 25 | B144: 0.837
A145: 26 | B145: 0.825
A146: 27 | B146: 0.814
A147: 28 | B147: 0.802
A148: 29 | B148: 0.791
A149: 30 | B149: 0.781
A150: 31 | B150: 0.771
A151: 32 | B151: 0.761
A152: 33 | B152: 0.751
A153: 34 | B153: 0.741
A154: 35 | B154: 0.731
A155: 36 | B155: 0.721
A156: 37 | B156: 0.711
A157: 38 | B157: 0.701
A158: 39 | B158: 0.691
A159: 40 | B159: 0.681
A160: 41 | B160: 0.671
A161: 42 | B161: 0.659
A162: 43 | B162: 0.647
A163: 44 | B163: 0.635
A164: 45 | B164: 0.623
A165: 46 | B165: 0.611
A166: 47 | B166: 0.598
A167: 48 | B167: 0.585
A168: 49 | B168: 0.572
A169: 50 | B169: 0.558
A170: 51 | B170: 0.544
A171: 52 | B171: 0.53
A172: 53 | B172: 0.516
A173: 54 | B173: 0.501
A174: 55 | B174: 0.486
A175: 56 | B175: 0.471
A176: 57 | B176: 0.456
A177: 58 | B177: 0.44
A178: 59 | B178: 0.424
A179: 60 | B179: 0.408
A180: 61 | B180: 0.392
A181: 62 | B181: 0.375
A182: 63 | B182: 0.358
A183: 64 | B183: 0.341
A184: 65 | B184: 0.323
A185: 66 | B185: 0.305
A186: 67 | B186: 0.287
A187: 68 | B187: 0.269
A188: 69 | B188: 0.251
A189: 70 | B189: 0.234
A190: 71 | B190: 0.217
A191: 72 | B191: 0.201
A192: 73 | B192: 0.185
A193: 74 | B193: 0.17
A194: 75 | B194: 0.155
A195: 76 | B195: 0.141
A196: 77 | B196: 0.127
A197: 78 | B197: 0.114
A198: 79 | B198: 0.101
A199: 80 | B199: 0.088
A200: 81 | B200: 0.076
A201: 82 | B201: 0.065
A202: 83 | B202: 0.054
A203: 84 | B203: 0.044
A204: 85 | B204: 0.034
A205: 86 | B205: 0.025
A206: 87 | B206: 0.015
A207: 88 | B207: 0.007
... 2 more rows

Sheet Macro1
A1: Print_Energy_Index_Results (r) | B1: Prints_Energy_Index_Calculation_Sheet (s)
A2: =PRINT(1,,,1,,,,,,,,2) -> TRUE | B2: =WORKBOOK.UNHIDE("Calculation sheet") -> 
A3: =RETURN() -> TRUE | B3: =PRINT(1,,,1,,,,,,,,2) -> TRUE | C3: =SELECT("R2C1") -> TRUE
B4: =WORKBOOK.HIDE() -> TRUE
B5: =RETURN() -> TRUE | C5: =WORKBOOK.SELECT("Energy Index","Energy Index") -> TRUE
